bitfinex-derivatives/quotes_BTCF0:USTF0_20251002
["timestamp","ask_amount","ask_price","bid_price","bid_amount"]
[1759414621498,0.0835476,119620.0,119610.0,0.39669]
[1759414621692,1.19947816,119620.0,119610.0,0.39669]
[1759414621899,0.84683827,119620.0,119610.0,0.39669]
[1759414622204,0.84695827,119620.0,119610.0,0.39669]
[1759414623495,0.84691827,119620.0,119610.0,0.39669]
[1759414624397,0.84687827,119620.0,119610.0,0.39669]
[1759414624696,0.08415827,119620.0,119610.0,0.39669]
[1759414624900,0.84675827,119620.0,119610.0,0.39669]
[1759414625804,0.83611827,119620.0,119610.0,0.39669]
[1759414626396,0.83607827,119620.0,119610.0,0.39669]
[1759414626593,0.84671827,119620.0,119610.0,0.39669]
[1759414626796,0.83599827,119620.0,119610.0,0.4802446]
[1759414627198,0.84663827,119620.0,119610.0,0.4802446]
[1759414627504,0.84663827,119620.0,119610.0,0.39669]
[1759414629208,0.84663827,119620.0,119610.0,0.4802446]
[1759414629406,0.84663827,119620.0,119610.0,0.39669]
[1759414630103,0.84663827,119620.0,119610.0,0.4802446]
[1759414630302,0.83583827,119620.0,119610.0,0.4802446]
[1759414630805,0.0941873,119630.0,119620.0,0.03501]
[1759414631006,0.8563473,119630.0,119620.0,0.03501]
[1759414631505,0.8563473,119630.0,119620.0,0.39581]
[1759414631898,0.0835473,119630.0,119620.0,0.83199749]
[1759414632098,0.8457873,119630.0,119620.0,0.83199749]
[1759414632299,0.8457873,119630.0,119620.0,0.88439144]
[1759414632300,0.002,119630.0,119620.0,0.88439144]
[1759414632610,0.6344,119630.0,119620.0,0.88439144]
[1759414632906,0.002,119630.0,119620.0,1.28439144]
[1759414634098,0.002,119630.0,119620.0,1.3441295]
[1759414634504,0.4654183,119640.0,119630.0,0.1185506]
[1759414634709,0.4760583,119640.0,119630.0,0.88438444]
[1759414635002,0.4760583,119640.0,119630.0,0.4793506]
[1759414635203,0.4760583,119640.0,119630.0,0.39581]
[1759414635908,0.4770583,119640.0,119630.0,0.39581]
[1759414636301,0.4770583,119640.0,119630.0,0.71982382]
[1759414636501,0.4664183,119640.0,119630.0,0.80336442]
[1759414636802,0.4770583,119640.0,119630.0,0.80336442]
[1759414637805,0.80107212,119640.0,119630.0,0.80336442]
[1759414638006,0.4770583,119640.0,119630.0,0.80336442]
[1759414638805,0.01164,119640.0,119630.0,0.80336442]
[1759414639010,0.001,119640.0,119630.0,1.12737824]
[1759414639212,0.0845336,119640.0,119630.0,1.1871163]
[1759414639409,0.0845336,119640.0,119630.0,0.86310248]
[1759414639606,0.0951736,119640.0,119630.0,0.86310248]
[1759414640305,0.0951736,119640.0,119630.0,0.53908866]
[1759414640506,0.0951736,119640.0,119630.0,0.86310248]
[1759414640704,0.08514599,119640.0,119630.0,0.53908866]
[1759414641099,0.08514599,119640.0,119630.0,0.86310248]
[1759414641306,0.08514599,119640.0,119630.0,0.77956188]
[1759414641507,0.40915981,119640.0,119630.0,0.77956188]
[1759414642013,0.08514599,119640.0,119630.0,0.77956188]
[1759414642213,0.08514599,119640.0,119630.0,0.45554806]
[1759414642714,0.08514599,119640.0,119630.0,0.77956188]
[1759414642906,0.40915981,119640.0,119630.0,0.77956188]
[1759414643213,0.40915981,119640.0,119630.0,0.86310248]
[1759414643513,0.08514599,119640.0,119630.0,0.86310248]
[1759414643707,0.08514599,119640.0,119630.0,0.80336442]
[1759414644701,0.08514599,119640.0,119630.0,0.80736442]
[1759414644907,0.84710599,119640.0,119630.0,0.81136442]
[1759414646715,0.84710599,119640.0,119630.0,0.78756188]
[1759414647516,0.84710599,119640.0,119630.0,0.87110248]
[1759414648210,0.84710599,119640.0,119630.0,0.81136442]
[1759414648407,0.41818392,119650.0,119640.0,0.0835336]
[1759414648712,1.18010392,119650.0,119640.0,0.80354742]
[1759414650112,1.18010392,119650.0,119640.0,0.397]
[1759414650312,1.18010392,119650.0,119640.0,0.72101382]
[1759414651102,1.18010392,119650.0,119640.0,0.80454742]
[1759414651504,0.0835301,119650.0,119640.0,1.12856124]
[1759414651702,0.16900205,119660.0,119650.0,0.1187266]
[1759414651908,0.9223596,119660.0,119650.0,0.44274042]
[1759414652214,0.1604796,119660.0,119650.0,0.44274042]
[1759414652411,0.9223596,119660.0,119650.0,0.44274042]
[1759414652908,0.0941972,119670.0,119660.0,0.1187196]
[1759414653109,0.8560772,119670.0,119660.0,0.76674724]
[1759414653304,0.8560772,119670.0,119660.0,0.4795196]
[1759414653508,0.86426712,119670.0,119660.0,1.12754724]
[1759414653902,1.18009102,119670.0,119660.0,0.80353342]
[1759414654210,1.18209102,119670.0,119660.0,0.80353342]
[1759414654914,1.18109102,119670.0,119660.0,0.80353342]
[1759414655613,1.18952905,119670.0,119660.0,0.4795196]
[1759414655810,1.18952905,119670.0,119660.0,0.80353342]
[1759414656410,0.8570727,119670.0,119660.0,0.80353342]
[1759414656616,1.18108652,119670.0,119660.0,0.80353342]
[1759414657816,1.24900585,119670.0,119660.0,0.80353342]
[1759414658717,0.00104,119670.0,119660.0,1.12754724]
[1759414659010,0.00104,119670.0,119660.0,1.1872853]
[1759414659011,0.47876,119670.0,119660.0,1.1872853]
[1759414659219,0.00104,119670.0,119660.0,1.1872853]
[1759414659411,0.76284,119670.0,119660.0,1.1872853]
[1759414659808,0.00104,119670.0,119660.0,1.1872853]
[1759414660218,4e-05,119670.0,119660.0,1.1932853]
[1759414660406,0.0941427,119690.0,119680.0,0.1187057]
[1759414660608,0.8559427,119690.0,119680.0,1.12753334]
[1759414660914,1.18825223,119690.0,119680.0,0.80351952]
[1759414661111,1.2552585,119690.0,119680.0,0.80351952]
[1759414661314,1.18825223,119690.0,119680.0,0.80351952]
[1759414661813,1.18925223,119690.0,119680.0,0.80351952]
[1759414662519,1.18925223,119690.0,119680.0,0.4795057]
[1759414662814,1.18925223,119690.0,119680.0,0.72001382]
[1759414663020,1.18925223,119690.0,119680.0,0.396]
[1759414663219,1.18925223,119690.0,119680.0,0.4795057]
[1759414665314,1.18925223,119690.0,119680.0,0.80351952]
[1759414665720,1.18925223,119690.0,119680.0,0.4795057]
[1759414665922,0.41915652,119690.0,119680.0,0.80351952]
[1759414666221,1.18083652,119690.0,119680.0,0.80351952]
[1759414666413,1.18083652,119690.0,119680.0,0.4795057]
[1759414666613,1.18083652,119690.0,119680.0,0.80351952]
[1759414667420,1.18083652,119690.0,119680.0,0.4795057]
[1759414667617,1.18083652,119690.0,119680.0,0.1187057]
[1759414668918,1.18083652,119690.0,119680.0,0.80351952]
[1759414669118,1.18083652,119690.0,119680.0,0.44271952]
[1759414669313,1.18083652,119690.0,119680.0,0.1187057]
[1759414669916,1.18923408,119690.0,119680.0,0.1187057]
[1759414671428,0.86522026,119690.0,119680.0,0.1187057]
[1759414671617,1.18923408,119690.0,119680.0,0.4795057]
[1759414671813,1.18923408,119690.0,119680.0,0.1187057]
[1759414675717,1.18923408,119690.0,119680.0,0.0352]
[1759414676021,0.8566627,119690.0,119680.0,0.44271942]
[1759414676216,1.18067652,119690.0,119680.0,0.44271942]
[1759414676924,1.18067652,119690.0,119680.0,0.1187056]
[1759414677423,1.18067652,119690.0,119680.0,0.4795056]
[1759414677615,1.50469034,119690.0,119680.0,0.396]
[1759414677817,0.0941456,119680.0,119670.0,0.4794776]
[1759414678015,0.74217324,119680.0,119670.0,0.4794776]
[1759414678214,0.74217324,119680.0,119670.0,0.39597]
[1759414678418,0.74217324,119680.0,119670.0,0.45570806]
[1759414678616,0.41815942,119680.0,119670.0,0.77972188]
[1759414679027,0.41815942,119680.0,119670.0,0.71998382]
[1759414679226,0.41815942,119680.0,119670.0,0.77972188]
[1759414679822,0.41815942,119680.0,119670.0,0.78272188]
[1759414680018,0.41815942,119680.0,119670.0,0.80349642]
[1759414680221,0.41815942,119680.0,119670.0,0.80649642]
[1759414680522,1.17963942,119680.0,119670.0,0.4824826]
[1759414680828,1.50365324,119680.0,119670.0,0.4824826]
[1759414681018,1.50365324,119680.0,119670.0,0.09790806]
[1759414681619,0.74221324,119680.0,119670.0,0.09790806]
[1759414681823,1.50369324,119680.0,119670.0,0.09790806]
[1759414682332,1.50369324,119680.0,119670.0,0.45870806]
[1759414682628,1.50369324,119680.0,119670.0,0.09790806]
[1759414683020,0.74221324,119680.0,119670.0,0.09790806]
[1759414683222,0.74221324,119680.0,119670.0,0.18142066]
[1759414683429,1.50365324,119680.0,119670.0,0.18142066]
[1759414683727,1.50365324,119680.0,119670.0,0.09790806]
[1759414684032,1.50365324,119680.0,119670.0,0.03817]
[1759414684619,0.8556256,119680.0,119670.0,0.03817]
[1759414684925,1.50365324,119680.0,119670.0,0.03817]
[1759414685425,0.8556256,119680.0,119670.0,0.03817]
[1759414685626,1.50365324,119680.0,119670.0,0.03817]
[1759414687822,2.2176419,119680.0,119670.0,0.06273806]
[1759414688023,1.4562019,119680.0,119670.0,0.06273806]
[1759414688228,1.4562019,119680.0,119670.0,0.003]
[1759414688229,2.2176419,119680.0,119670.0,0.003]
[1759414688831,1.89362808,119680.0,119670.0,0.003]
[1759414689129,1.89362808,119680.0,119670.0,0.01588]
[1759414689627,1.89362808,119680.0,119670.0,0.003]
[1759414690731,0.84560044,119680.0,119670.0,0.03823]
[1759414691026,1.49362808,119680.0,119670.0,0.03823]
[1759414691216,1.49362808,119680.0,119670.0,0.01588]
[1759414692026,2.1784419,119680.0,119670.0,0.003]
[1759414692328,2.25431098,119680.0,119670.0,0.003]
[1759414693623,0.0835121,119670.0,119660.0,0.39597]
[1759414693822,0.73142264,119670.0,119660.0,0.39597]
[1759414694017,1.16890737,119670.0,119660.0,0.39597]
[1759414694426,0.40746737,119670.0,119660.0,0.39597]
[1759414694826,0.8449521,119670.0,119660.0,0.39597]
[1759414695024,1.16890737,119670.0,119660.0,0.39597]
[1759414695329,0.8449521,119670.0,119660.0,0.40197]
[1759414695624,1.16890737,119670.0,119660.0,0.40197]
[1759414695830,1.16890737,119670.0,119660.0,0.39597]
[1759414696128,0.0835121,119670.0,119660.0,0.4824891]
[1759414696317,0.8449521,119670.0,119660.0,0.86618243]
[1759414696632,0.8449521,119670.0,119660.0,0.86318243]
[1759414696831,0.8449521,119670.0,119660.0,0.86918243]
[1759414697527,0.0835121,119670.0,119660.0,0.86918243]
[1759414697831,0.5613121,119670.0,119660.0,0.86918243]
[1759414698231,0.5613121,119670.0,119660.0,1.18566333]
[1759414698434,0.5613121,119670.0,119660.0,0.86170806]
[1759414699327,0.88526737,119670.0,119660.0,0.86170806]
[1759414700729,0.5613121,119670.0,119660.0,0.86170806]
[1759414701033,0.5613121,119670.0,119660.0,1.18566333]
[1759414701634,0.0835121,119670.0,119660.0,1.26918273]
[1759414702029,0.8449121,119670.0,119660.0,1.26918273]
[1759414702732,0.8449121,119670.0,119660.0,1.12592527]
[1759414703128,0.8449121,119670.0,119660.0,0.80197]
[1759414704229,0.8449121,119670.0,119660.0,0.86163521]
[1759414704629,1.16886737,119670.0,119660.0,0.46163521]
[1759414710143,0.8449121,119670.0,119660.0,0.46163521]
[1759414710736,1.16886737,119670.0,119660.0,0.46163521]
[1759414711344,1.16886737,119670.0,119660.0,0.43928521]
[1759414711644,1.16886737,119670.0,119660.0,0.07848521]
[1759414711645,1.89282264,119670.0,119660.0,0.07848521]
[1759414712148,1.89282264,119670.0,119660.0,0.01882]
[1759414712840,1.89282264,119670.0,119660.0,0.03399]
[1759414713036,0.0835193,119660.0,119650.0,0.07248521]
[1759414713240,0.40747457,119660.0,119650.0,0.09365521]
[1759414714143,0.40747457,119660.0,119650.0,0.09965521]
[1759414715243,1.235517,119660.0,119650.0,0.46045521]
[1759414715740,1.16879457,119660.0,119650.0,0.46045521]
[1759414717441,1.16879457,119660.0,119650.0,0.40079]
[1759414718438,1.16879457,119660.0,119650.0,0.46045521]
[1759414718640,1.17704643,119660.0,119650.0,0.46045521]
[1759414719048,0.85309116,119660.0,119650.0,0.46045521]
[1759414719250,1.17704643,119660.0,119650.0,0.46045521]
[1759414719445,1.17704643,119660.0,119650.0,0.07848521]
[1759414720147,0.85309116,119660.0,119650.0,0.07848521]
[1759414720443,1.17704643,119660.0,119650.0,0.07848521]
[1759414720649,1.24263979,119660.0,119650.0,0.07848521]
[1759414720849,0.48131979,119660.0,119650.0,0.09965521]
[1759414721155,1.24259979,119660.0,119650.0,0.09965521]
[1759414721556,1.24259979,119660.0,119650.0,0.46045521]
[1759414721851,0.48131979,119660.0,119650.0,0.54398001]
[1759414722044,1.24259979,119660.0,119650.0,0.46045521]
[1759414722540,0.91864452,119660.0,119650.0,0.46045521]
[1759414722738,1.24259979,119660.0,119650.0,0.46045521]
[1759414722948,0.47306793,119660.0,119650.0,0.46045521]
[1759414723150,1.23434793,119660.0,119650.0,0.46045521]
[1759414724152,0.47306793,119660.0,119650.0,0.46045521]
[1759414724450,1.23434793,119660.0,119650.0,0.46045521]
[1759414725251,0.0835193,119660.0,119650.0,0.86793528]
[1759414725447,0.8447993,119660.0,119650.0,0.86793528]
[1759414726244,0.8447993,119660.0,119650.0,0.80827007]
[1759414727046,0.8447993,119660.0,119650.0,0.72474527]
[1759414727351,0.83477299,119660.0,119650.0,0.72474527]
[1759414727553,0.83477299,119660.0,119650.0,0.79978629]
[1759414727750,0.83477299,119660.0,119650.0,0.47583102]
[1759414727951,0.83481299,119660.0,119650.0,0.47583102]
[1759414729355,0.07353299,119660.0,119650.0,0.55935592]
[1759414729553,0.83481299,119660.0,119650.0,0.55935592]
[1759414729951,0.07353299,119660.0,119650.0,0.47583102]
[1759414730153,0.83477299,119660.0,119650.0,0.4843148]
[1759414730364,0.07353299,119660.0,119650.0,0.55935582]
[1759414730654,0.0835579,119660.0,119650.0,1.28331109]
[1759414731959,0.0835579,119660.0,119650.0,1.26804174]
[1759414734060,4e-05,119660.0,119650.0,1.26804174]
[1759414735358,0.0835579,119660.0,119650.0,1.26804174]
[1759414735564,0.0835579,119660.0,119650.0,0.86056167]
[1759414735958,0.0835579,119660.0,119650.0,0.94408657]
[1759414736575,0.0835579,119660.0,119650.0,1.26804184]
[1759414736773,0.0835579,119660.0,119650.0,1.20827017]
[1759414741774,0.40751317,119660.0,119650.0,0.40079]
[1759414743480,0.40751317,119660.0,119650.0,0.47583102]
[1759414744179,0.40751317,119660.0,119650.0,0.55935602]
[1759414744381,0.0835579,119660.0,119650.0,0.88331129]
[1759414744678,4e-05,119660.0,119650.0,1.28331129]
[1759414744981,0.0735303,119670.0,119660.0,0.118638]
[1759414745279,0.0735303,119670.0,119660.0,0.87813474]
[1759414746386,0.0735303,119670.0,119660.0,0.88113474]
[1759414746977,0.44624,119680.0,119670.0,0.118631]
[1759414747179,0.44624,119680.0,119670.0,0.87146091]
[1759414747379,0.44624,119680.0,119670.0,0.86316185]
[1759414747780,4e-05,119680.0,119670.0,0.80338627]
[1759414747981,0.083544,119680.0,119670.0,0.80338627]
[1759414748289,0.083544,119680.0,119670.0,0.86313331]
[1759414748586,0.083544,119680.0,119670.0,0.8715705]
[1759414749187,0.083544,119680.0,119670.0,0.86313331]
[1759414749986,0.40749927,119680.0,119670.0,0.45566704]
[1759414753991,0.40749927,119680.0,119670.0,0.39592]
[1759414754390,0.73121972,119680.0,119670.0,0.39592]
[1759414755292,0.73121972,119680.0,119670.0,0.40192]
[1759414756387,0.083544,119680.0,119670.0,0.40192]
[1759414756589,0.73121972,119680.0,119670.0,0.40192]
[1759414756887,1.13121972,119680.0,119670.0,0.46164265]
[1759414757090,1.13121972,119680.0,119670.0,0.07850265]
[1759414757288,1.13121972,119680.0,119670.0,0.006]
[1759414758587,1.13121972,119680.0,119670.0,0.01878]
[1759414758792,1.89205972,119680.0,119670.0,0.04112]
[1759414758982,1.13121972,119680.0,119670.0,0.04112]
[1759414759188,1.49205972,119680.0,119670.0,0.40192]
[1759414759392,1.16822186,119680.0,119670.0,0.40192]
[1759414759593,1.49205972,119680.0,119670.0,0.40192]
[1759414759787,0.73121972,119680.0,119670.0,0.40192]
[1759414759990,1.49205972,119680.0,119670.0,0.40192]
[1759414765690,0.73121972,119680.0,119670.0,0.40192]
[1759414765893,1.49201972,119680.0,119670.0,0.485431]
[1759414766399,0.844344,119680.0,119670.0,0.485431]
[1759414766592,0.844344,119680.0,119670.0,0.40192]
[1759414766593,0.73121972,119680.0,119670.0,0.40192]
[1759414766789,1.49201972,119680.0,119670.0,0.72575786]
[1759414767295,1.49201972,119680.0,119670.0,0.40192]
[1759414768000,0.73121972,119680.0,119670.0,0.40192]
[1759414768200,1.49201972,119680.0,119670.0,0.40192]
[1759414768598,0.73121972,119680.0,119670.0,0.40192]
[1759414768902,1.49197972,119680.0,119670.0,0.40192]
[1759414771195,1.49197972,119680.0,119670.0,0.46164265]
[1759414774505,0.73121972,119680.0,119670.0,0.46164265]
[1759414774807,1.49197972,119680.0,119670.0,0.46164265]
[1759414777499,1.49197972,119680.0,119670.0,0.06572265]
[1759414777500,2.57661758,119680.0,119670.0,0.06572265]
[1759414777692,2.57661758,119680.0,119670.0,0.006]
[1759414779505,2.17661758,119680.0,119670.0,0.006]
[1759414780208,2.57661758,119680.0,119670.0,0.006]
[1759414780405,2.17661758,119680.0,119670.0,0.006]
[1759414781402,2.17661758,119680.0,119660.0,0.05972265]
[1759414781403,0.0835109,119670.0,119660.0,0.05972265]
[1759414781604,0.0835179,119660.0,119650.0,0.45504265]
[1759414781809,1.49187362,119660.0,119650.0,0.45504265]
[1759414782306,1.49187362,119660.0,119650.0,0.01282]
[1759414782307,1.80568517,119660.0,119650.0,0.01282]
[1759414782503,1.48184731,119660.0,119650.0,0.08756147]
[1759414782809,1.48184731,119660.0,119650.0,0.03452]
[1759414783006,1.48184731,119660.0,119650.0,0.04052]
[1759414783203,1.80568517,119660.0,119650.0,0.01882]
[1759414783403,2.16648517,119660.0,119650.0,0.006]
[1759414783706,2.56648517,119660.0,119650.0,0.006]
[1759414784202,0.0835249,119650.0,119640.0,0.08762147]
[1759414784398,0.73120062,119650.0,119640.0,0.07474147]
[1759414784603,0.0835319,119640.0,119630.0,0.44903147]
[1759414784803,1.49184762,119640.0,119630.0,0.08823147]
[1759414785406,1.47826814,119640.0,119630.0,0.08823147]
[1759414785606,1.47830814,119640.0,119630.0,0.10993147]
[1759414785806,0.71762814,119640.0,119630.0,0.10993147]
[1759414786007,1.47826814,119640.0,119630.0,0.10993147]
[1759414786209,1.47826814,119640.0,119630.0,0.11293147]
[1759414786504,1.48646791,119640.0,119630.0,0.11293147]
[1759414786703,1.48646791,119640.0,119630.0,0.07774147]
[1759414786907,1.48646791,119640.0,119630.0,0.01649]
[1759414787214,1.48646791,119640.0,119630.0,0.01349]
[1759414787415,1.48646791,119640.0,119630.0,0.01649]
[1759414788310,0.40199005,119640.0,119630.0,0.03819]
[1759414788512,0.83883219,119640.0,119630.0,0.39899]
[1759414788716,1.48650791,119640.0,119630.0,0.39899]
[1759414791718,1.55294752,119640.0,119630.0,0.03819]
[1759414793617,1.87678538,119640.0,119630.0,0.01649]
[1759414793819,1.55294752,119640.0,119630.0,0.01649]
[1759414795416,2.23758538,119640.0,119630.0,0.003]
[1759414795617,2.63758538,119640.0,119630.0,0.003]
[1759414795917,1.05505238,119630.0,119620.0,7e-08]
[1759414796115,0.0835527,119610.0,119600.0,0.50129153]
[1759414796324,1.48187888,119610.0,119600.0,0.50129153]
[1759414796516,1.48187888,119610.0,119600.0,0.11756153]
[1759414797021,1.48187888,119610.0,119600.0,0.01358684]
[1759414797419,1.84267888,119610.0,119600.0,9.684e-05]
[1759414797615,1.84271888,119610.0,119600.0,9.684e-05]
[1759414797823,1.08199888,119610.0,119600.0,9.684e-05]
[1759414798322,0.75816102,119610.0,119600.0,0.03596684]
[1759414798518,1.84267888,119610.0,119600.0,0.03796684]
[1759414798723,1.84271888,119610.0,119600.0,0.03996684]
[1759414799024,1.84271888,119610.0,119600.0,0.00409684]
[1759414799223,1.84271888,119610.0,119600.0,9.684e-05]
[1759414799424,1.84371888,119610.0,119600.0,9.684e-05]
[1759414800418,1.08299888,119610.0,119600.0,9.684e-05]
[1759414800620,0.75916102,119610.0,119600.0,0.03596684]
[1759414800824,1.51888102,119610.0,119600.0,0.03596684]
[1759414801024,1.51888102,119610.0,119600.0,0.03796684]
[1759414801226,1.51888102,119610.0,119600.0,0.03996684]
[1759414801519,1.48191888,119610.0,119600.0,0.01703684]
[1759414801724,1.84271888,119610.0,119600.0,0.00409684]
[1759414802024,1.84271888,119610.0,119600.0,9.684e-05]
[1759414802224,1.84271888,119610.0,119600.0,0.03796684]
[1759414802925,1.84271888,119610.0,119600.0,0.00209684]
[1759414803130,1.84275888,119610.0,119600.0,0.03796684]
[1759414803322,1.84275888,119610.0,119600.0,0.01503684]
[1759414803528,1.84275888,119610.0,119600.0,0.00209684]
[1759414804025,1.84275888,119610.0,119600.0,0.03796684]
[1759414804328,1.84275888,119610.0,119600.0,0.01503684]
[1759414804527,1.84275888,119610.0,119600.0,0.00209684]
[1759414804929,1.84275888,119610.0,119600.0,0.01503684]
[1759414805530,1.19508316,119610.0,119600.0,0.01503684]
[1759414805733,1.84275888,119610.0,119600.0,0.01503684]
[1759414806031,1.84275888,119610.0,119600.0,0.00209684]
[1759414806333,1.84275888,119610.0,119600.0,0.03796684]
[1759414806930,1.84275888,119610.0,119600.0,0.01503684]
[1759414807232,0.72119888,119610.0,119600.0,0.02502684]
[1759414807434,0.07352316,119610.0,119600.0,0.39876684]
[1759414807724,0.39736102,119610.0,119600.0,0.39876684]
[1759414807931,0.39740102,119610.0,119600.0,0.8061654]
[1759414808227,0.07356316,119610.0,119600.0,1.53000326]
[1759414808533,0.83436316,119610.0,119600.0,1.53000326]
[1759414809532,0.76084,119610.0,119600.0,1.53000326]
[1759414809732,4e-05,119610.0,119600.0,1.53000326]
[1759414809934,0.76084,119610.0,119600.0,1.53000326]
[1759414810131,0.8443937,119610.0,119600.0,1.53000326]
[1759414810430,1.16823156,119610.0,119600.0,0.88232754]
[1759414810632,1.16823156,119610.0,119600.0,1.1226047]
[1759414810825,1.16823156,119610.0,119600.0,1.2061654]
[1759414813436,1.16823156,119610.0,119600.0,0.79876684]
[1759414813635,1.16823156,119610.0,119600.0,1.1226047]
[1759414813934,1.16823156,119610.0,119600.0,1.2061655]
[1759414814630,0.8443937,119610.0,119600.0,1.2061655]
[1759414814936,1.16823156,119610.0,119600.0,1.2061655]
[1759414815336,1.16823156,119610.0,119600.0,0.79876684]
[1759414815735,1.49206942,119610.0,119600.0,0.39876684]
[1759414816035,1.49206942,119610.0,119600.0,0.01503684]
[1759414816231,1.49299654,119610.0,119600.0,0.03796684]
[1759414816837,1.49299654,119610.0,119600.0,0.01503684]
[1759414817435,1.49299654,119610.0,119600.0,0.03796684]
[1759414817936,1.49299654,119610.0,119600.0,0.01503684]
[1759414818435,1.85379654,119610.0,119600.0,0.00209684]
[1759414819236,1.49299654,119610.0,119600.0,0.03796684]
[1759414820140,0.40789512,119610.0,119600.0,0.03796684]
[1759414820341,1.16857512,119610.0,119600.0,0.03796684]
[1759414820638,0.40789512,119610.0,119600.0,0.03796684]
[1759414820840,1.16857512,119610.0,119600.0,0.03796684]
[1759414821040,0.40789512,119610.0,119600.0,0.03796684]
[1759414821341,1.16857512,119610.0,119600.0,0.39876684]
[1759414822638,1.16857512,119610.0,119600.0,0.03796684]
[1759414823034,1.16857512,119610.0,119600.0,0.01503684]
[1759414823339,1.49287654,119610.0,119600.0,0.01503684]
[1759414823539,0.73219654,119610.0,119600.0,0.01503684]
[1759414823741,1.49287654,119610.0,119600.0,0.01503684]
[1759414823945,1.16857512,119610.0,119600.0,0.01503684]
[1759414824238,1.16857512,119610.0,119600.0,0.00209684]
[1759414824239,1.51554692,119610.0,119600.0,0.00209684]
[1759414824440,0.0835678,119590.0,119580.0,0.39668]
[1759414824735,1.16854922,119590.0,119580.0,0.37374]
[1759414824938,0.8525326,119590.0,119580.0,0.3608]
[1759414825136,1.17683402,119590.0,119580.0,0.3608]
[1759414825335,1.17683402,119590.0,119570.0,0.37374]
[1759414825336,0.0835747,119580.0,119570.0,0.37374]
[1759414825544,0.39784387,119580.0,119570.0,0.37374]
[1759414826142,0.0835817,119570.0,119560.0,0.37347]
[1759414826330,1.15493711,119570.0,119560.0,0.37347]
[1759414826832,0.83063569,119570.0,119560.0,0.39574]
[1759414827038,1.15493711,119570.0,119560.0,0.37347]
[1759414827239,1.15493711,119570.0,119560.0,0.3648]
[1759414827440,1.15493711,119570.0,119560.0,0.43921985]
[1759414827631,1.15493711,119570.0,119560.0,0.07841985]
[1759414828145,1.15493711,119570.0,119560.0,0.004]
[1759414828443,1.55493711,119570.0,119560.0,0.004]
[1759414828643,1.55493711,119570.0,119550.0,0.07441985]
[1759414828830,1.09305746,119560.0,119550.0,0.07441985]
[1759414829146,0.0835957,119550.0,119540.0,0.01388]
[1759414829339,1.09299854,119550.0,119540.0,0.01388]
[1759414829546,1.85367854,119550.0,119540.0,0.01388]
[1759414829741,1.09299854,119550.0,119540.0,0.01388]
[1759414830042,1.85371854,119550.0,119540.0,0.01388]
[1759414830243,0.0836027,119540.0,119530.0,0.11785469]
[1759414830432,0.77816526,119540.0,119530.0,0.11785469]
[1759414830635,0.77826173,119540.0,119530.0,0.10397469]
[1759414830837,0.77826173,119540.0,119530.0,0.06897469]
[1759414831140,0.42547479,119540.0,119530.0,0.01388]
[1759414831338,3.23478173,119540.0,119530.0,0.01388]
[1759414831733,3.63478173,119540.0,119530.0,0.01388]
[1759414832141,3.65797659,119540.0,119530.0,0.01388]
[1759414832342,1.20145659,119540.0,119530.0,0.02388]
[1759414832542,3.63494173,119540.0,119530.0,0.03388]
[1759414833048,0.0836096,119530.0,119520.0,0.01395719]
[1759414833350,0.79719654,119530.0,119520.0,0.01395719]
[1759414834250,0.79719654,119530.0,119520.0,0.02195719]
[1759414834449,0.86445967,119530.0,119520.0,0.03495719]
[1759414834743,1.26445967,119530.0,119520.0,0.03495719]
[1759414834947,1.26445967,119530.0,119520.0,0.01395719]
[1759414835149,1.26445967,119530.0,119520.0,0.01373065]
[1759414835347,1.26445967,119530.0,119500.0,0.01388]
[1759414835348,0.0836237,119510.0,119500.0,0.00775]
[1759414835545,0.0836307,119500.0,119490.0,0.00986066]
[1759414835749,0.79721764,119500.0,119490.0,0.00986066]
[1759414835944,1.19721764,119500.0,119490.0,0.00986066]
[1759414836150,3.65439121,119500.0,119490.0,0.00986066]
[1759414836350,3.6628966,119500.0,119490.0,0.00986066]
[1759414836848,3.6728966,119500.0,119490.0,0.00986066]
[1759414837152,1.2248166,119500.0,119490.0,0.00986066]
[1759414837352,3.6821366,119500.0,119490.0,0.00986066]
[1759414837947,3.6821366,119500.0,119490.0,6e-08]
[1759414838159,0.0836376,119490.0,119480.0,0.01388]
[1759414838346,0.79722454,119490.0,119480.0,0.01388]
[1759414838850,0.4444376,119490.0,119480.0,0.01388]
[1759414839152,1.55826454,119490.0,119480.0,0.01388]
[1759414839353,1.19746454,119490.0,119480.0,0.03615]
[1759414839657,1.19946454,119490.0,119480.0,0.03615]
[1759414839852,0.43842454,119490.0,119480.0,0.03615]
[1759414840053,1.19950454,119490.0,119480.0,0.03615]
[1759414840353,1.20450454,119490.0,119480.0,0.03615]
[1759414840554,1.20450454,119490.0,119480.0,0.43615]
[1759414840555,0.0906376,119490.0,119480.0,0.43615]
[1759414840743,0.8517176,119490.0,119480.0,0.43615]
[1759414840944,0.8517576,119490.0,119480.0,0.8805946]
[1759414841647,0.0906376,119490.0,119480.0,0.8805946]
[1759414841849,0.8517976,119490.0,119480.0,0.4805946]
[1759414842455,0.0906376,119490.0,119480.0,0.4805946]
[1759414842658,0.7481176,119490.0,119480.0,0.4805946]
[1759414843446,0.0906376,119490.0,119480.0,0.39695]
[1759414843652,1.20458454,119490.0,119480.0,0.03615]
[1759414843848,1.20458454,119490.0,119480.0,0.01388]
[1759414844052,0.80422454,119490.0,119480.0,1e-07]
[1759414844453,1.56538454,119490.0,119480.0,1e-07]
[1759414845055,0.0836446,119480.0,119470.0,0.01388]
[1759414845355,0.43652079,119480.0,119470.0,0.01388]
[1759414845860,0.50221308,119480.0,119470.0,0.01388]
[1759414846266,0.50221308,119480.0,119470.0,0.02088]
[1759414846456,0.50221308,119480.0,119470.0,0.03288]
[1759414847157,0.86301308,119480.0,119470.0,0.03288]
[1759414848459,0.86301308,119480.0,119470.0,0.01388]
[1759414848662,0.86301308,119480.0,119470.0,0.03715]
[1759414848663,1.26349308,119480.0,119470.0,0.03715]
[1759414849262,1.26349308,119480.0,119470.0,0.03615]
[1759414849561,1.26349308,119480.0,119470.0,0.01988]
[1759414849864,1.26349308,119480.0,119470.0,0.04215]
[1759414850048,0.14942614,119480.0,119470.0,0.44215]
[1759414850251,0.91070614,119480.0,119470.0,0.80295]
[1759414850559,1.26349308,119480.0,119470.0,0.44215]
[1759414850756,0.91070614,119480.0,119470.0,0.40295]
[1759414851149,0.91074614,119480.0,119470.0,0.40295]
[1759414851656,0.14942614,119480.0,119470.0,0.8866016]
[1759414851857,0.91074614,119480.0,119470.0,0.8866016]
[1759414852058,0.91074614,119480.0,119470.0,0.80295]
[1759414852865,1.26353308,119480.0,119470.0,0.80295]
[1759414853163,1.26353308,119480.0,119470.0,0.38068]
[1759414853359,0.91074614,119480.0,119470.0,0.40295]
[1759414853563,1.26353308,119480.0,119470.0,0.40295]
[1759414853954,0.14942614,119480.0,119470.0,0.39695]